bitfinex/quotes_SOLUSD_20260302
["timestamp","ask_amount","ask_price","bid_price","bid_amount"]
[1772465444159,1.77319649,87.879,87.831,1.7835417]
[1772465444541,8.29395826,87.87,87.831,1.7835417]
[1772465444764,1.77319649,87.879,87.831,1.7835417]
[1772465444965,8.29395826,87.86,87.817,1.7835417]
[1772465445143,1.77319649,87.859,87.817,1.7835417]
[1772465445554,8.29395826,87.85,87.804,1.7835417]
[1772465445759,8.29395826,87.85,87.81,8.29395826]
[1772465446066,8.29395826,87.83,87.791,1.7835417]
[1772465446267,1.77319649,87.839,87.791,1.7835417]
[1772465446571,1.77319649,87.863,87.821,1.7835417]
[1772465446773,1.77319649,87.859,87.81,10.07749996]
[1772465446941,1.77319649,87.859,87.811,1.7835417]
[1772465447360,8.29395826,87.85,87.811,1.7835417]
[1772465447747,8.29395826,87.84,87.8,8.29395826]
[1772465447956,8.29395826,87.87,87.821,1.77982238]
[1772465448159,1.73455621,87.869,87.83,10.07378064]
[1772465448357,1.73455621,87.869,87.83,1.77982238]
[1772465448544,8.29395826,87.86,87.82,8.29395826]
[1772465448744,1.73455621,87.869,87.821,1.77982238]
[1772465449270,8.29395826,87.86,87.821,1.77982238]
[1772465449569,1.73455621,87.869,87.83,8.29395826]
[1772465449870,8.29395826,87.86,87.821,1.77982238]
[1772465450466,1.73455621,87.882,87.84,8.29395826]
[1772465450669,8.29395826,87.86,87.82,8.29395826]
[1772465450867,1.73455621,87.859,87.819,1.77982238]
[1772465451370,1.73455621,87.859,87.78,1.92198395]
[1772465451554,1.73455621,87.859,87.813,1.77982238]
[1772465451758,1.73455621,87.849,87.801,1.77982238]
[1772465452366,8.29395826,87.83,87.791,1.77982238]
[1772465452568,1.73455621,87.819,87.767,1.77982238]
[1772465452792,1.73455621,87.799,87.751,1.77982238]
[1772465453278,1.73455621,87.799,87.752,0.28432314]
[1772465453450,1.73455621,87.799,87.731,1.13984794]
[1772465453451,10.02851447,87.81,87.761,1.77982238]
[1772465453654,8.29395826,87.8,87.761,1.77982238]
[1772465453875,1.73455621,87.809,87.77,8.29395826]
[1772465454252,1.73455621,87.809,87.771,1.77982238]
[1772465454468,1.73455621,87.826,87.781,1.77982238]
[1772465454868,8.29395826,87.82,87.781,1.77982238]
[1772465455062,1.73455621,87.819,87.77,8.29395826]
[1772465455369,1.73455621,87.789,87.75,8.29395826]
[1772465455678,8.29395826,87.8,87.751,1.77982238]
[1772465455868,1.73455621,87.819,87.771,1.77982238]
[1772465456059,8.29395826,87.81,87.771,1.77982238]
[1772465456463,1.73455621,87.809,87.76,8.29395826]
[1772465456663,8.29395826,87.8,87.759,1.77982238]
[1772465456853,8.29395826,87.8,87.76,8.29395826]
[1772465457166,10.02851447,87.81,87.77,8.29395826]
[1772465457376,1.73455621,87.809,87.761,1.77982238]
[1772465457559,3.69383402,87.829,87.78,8.29395826]
[1772465457560,10.02851447,87.82,87.78,8.29395826]
[1772465458158,1.73455621,87.82,87.78,8.29395826]
[1772465458869,1.73455621,87.838,87.791,1.77982238]
[1772465459172,28.45106295,87.871,87.773,1.13930251]
[1772465459173,3.69383402,87.845,87.82,8.29395826]
[1772465459382,1.73455621,87.852,87.82,8.29395826]
[1772465459578,1.73455621,87.88,87.83,10.07378064]
[1772465459777,8.29395826,87.87,87.83,1.77982238]
[1772465460272,11.37844521,87.886,87.818,1.77982238]
[1772465460273,1.73455621,87.859,87.818,1.77982238]
[1772465460475,11.37844521,87.886,87.801,1.77982238]
[1772465460476,8.29395826,87.85,87.801,1.77982238]
[1772465460775,8.29395826,87.86,87.811,2.06414552]
[1772465460981,8.29395826,87.84,87.801,1.77982238]
[1772465461193,1.73455621,87.849,87.801,1.77982238]
[1772465461473,8.29395826,87.83,87.792,0.28432314]
[1772465461678,8.29395826,87.83,87.791,1.77982238]
[1772465461980,3.69383402,87.869,87.773,3.69383402]
[1772465461981,8.29395826,87.8,87.773,3.69383402]
[1772465462164,1.73455621,87.809,87.76,10.07378064]
[1772465462477,10.02851447,87.84,87.791,1.77982238]
[1772465462982,1.73455621,87.839,87.791,1.77982238]
[1772465463379,8.29395826,87.83,87.791,1.77982238]
[1772465463682,8.29395826,87.82,87.781,0.28432314]
[1772465463984,10.02851447,87.82,87.776,1.77982238]
[1772465464484,1.73455621,87.819,87.776,1.77982238]
[1772465464682,8.29395826,87.81,87.776,1.77982238]
[1772465465382,8.29395826,87.84,87.793,1.77982238]
[1772465465578,8.29395826,87.84,87.792,0.28432314]
[1772465465579,1.73455621,87.847,87.801,1.77982238]
[1772465465973,10.02851447,87.86,87.811,1.77982238]
[1772465466158,10.02851447,87.86,87.82,8.29395826]
[1772465466363,10.02851447,87.86,87.811,1.77982238]
[1772465466586,10.02851447,87.86,87.781,3.69383402]
[1772465466587,8.29395826,87.82,87.783,3.69383402]
[1772465466785,8.29395826,87.82,87.761,1.1394583]
[1772465466786,8.29395826,87.81,87.741,1.77982238]
[1772465467084,8.29395826,87.81,87.761,1.77982238]
[1772465467491,3.69383402,87.84,87.742,1.13970504]
[1772465467492,1.73455621,87.789,87.742,1.13970504]
[1772465467664,1.73455621,87.789,87.74,8.29395826]
[1772465467863,10.02851447,87.78,87.735,1.77982238]
[1772465468264,1.73455621,87.779,87.735,1.77982238]
[1772465468465,1.73455621,87.779,87.73,8.49395826]
[1772465468699,1.73455621,87.769,87.73,0.2]
[1772465469068,1.73455621,87.781,87.74,10.07378064]
[1772465469395,1.73455621,87.781,87.741,1.77982238]
[1772465469571,8.29395826,87.79,87.73,11.59858633]
[1772465469572,1.73455621,87.809,87.761,1.77982238]
[1772465470592,1.73455621,87.809,87.771,0.28432314]
[1772465471073,3.69383402,87.84,87.771,0.28432314]
[1772465471074,1.73455621,87.829,87.78,8.29395826]
[1772465471771,1.73455621,87.829,87.79,8.29395826]
[1772465472703,3.69383402,87.86,87.81,8.29395826]
[1772465472704,1.73455621,87.841,87.81,8.29395826]
[1772465472868,1.73455621,87.859,87.81,8.29395826]
[1772465473068,1.73455621,87.839,87.791,1.13906892]
[1772465473265,11.38187322,87.859,87.781,3.69383402]
[1772465473266,1.73455621,87.819,87.781,3.69383402]
[1772465473494,1.73455621,87.809,87.771,0.28432314]
[1772465473675,11.98779228,87.85,87.735,1.77982238]
[1772465473676,1.73455621,87.789,87.735,1.77982238]
[1772465473878,1.73455621,87.789,87.734,1.13980896]
[1772465473879,1.73455621,87.789,87.74,10.07378064]
[1772465474186,1.73455621,87.789,87.741,1.78476673]
[1772465474391,1.72275278,87.769,87.726,1.78476673]
[1772465474572,1.72275278,87.769,87.74,8.29395826]
[1772465474766,1.72275278,87.769,87.73,8.29395826]
[1772465474977,1.72275278,87.769,87.711,3.69383402]
[1772465475178,1.72275278,87.759,87.71,8.29395826]
[1772465475379,1.72275278,87.749,87.71,8.29395826]
[1772465475895,1.72275278,87.749,87.7,8.29395826]
[1772465476080,1.72275278,87.749,87.71,8.29395826]
[1772465476396,1.72275278,87.762,87.72,8.29395826]
[1772465476893,10.01671104,87.77,87.73,8.29395826]
[1772465477192,1.72275278,87.769,87.722,0.28432314]
[1772465477587,1.72275278,87.769,87.73,10.08250421]
[1772465478087,1.72275278,87.769,87.74,8.29395826]
[1772465478295,2.1007097,87.799,87.75,8.29395826]
[1772465478667,1.81638656,87.779,87.74,8.29395826]
[1772465478870,1.81638656,87.779,87.73,8.29395826]
[1772465479286,1.81638656,87.779,87.74,8.29395826]
[1772465479485,1.81638656,87.769,87.73,8.29395826]
[1772465479672,1.81638656,87.769,87.72,8.29395826]
[1772465480400,15.08482466,87.789,87.75,8.29395826]
[1772465480401,1.81638656,87.789,87.75,8.29395826]
[1772465480784,1.81638656,87.789,87.721,1.13997788]
[1772465480785,1.81638656,87.789,87.74,8.29395826]
[1772465481092,1.81638656,87.769,87.72,8.29395826]
[1772465481492,1.81638656,87.782,87.74,8.29395826]
[1772465482091,1.81638656,87.782,87.75,8.29395826]
[1772465482673,3.69383402,87.809,87.732,1.42415809]
[1772465482674,3.69383402,87.812,87.771,1.78854595]
[1772465482873,1.81638656,87.819,87.771,1.78854595]
[1772465483078,1.81638656,87.819,87.79,8.29395826]
[1772465483284,1.81638656,87.839,87.79,8.29395826]
[1772465483593,1.81638656,87.819,87.77,8.29395826]
[1772465484095,1.81638656,87.819,87.78,8.29395826]
[1772465484391,1.81638656,87.799,87.755,1.78854595]
[1772465484591,1.81638656,87.789,87.74,8.29395826]
[1772465484774,1.81638656,87.779,87.732,1.78854595]
[1772465484973,8.29395826,87.78,87.732,1.78854595]
[1772465484974,1.81638656,87.77,87.732,1.78854595]
[1772465485279,1.81638656,87.759,87.72,8.29395826]
[1772465485472,1.81638656,87.759,87.72,19.6938356]
[1772465486107,1.81638656,87.749,87.653,1.78854595]
[1772465486277,1.81638656,87.739,87.69,8.29395826]
[1772465486595,1.81638656,87.739,87.69,10.08250421]
[1772465486891,1.81638656,87.739,87.69,1.78854595]
[1772465487191,8.29395826,87.74,87.69,8.29395826]
[1772465487192,1.81638656,87.727,87.69,8.29395826]
[1772465488476,1.81638656,87.757,87.71,8.29395826]
[1772465488683,1.81638656,87.757,87.72,8.29395826]
[1772465489290,1.81638656,87.755,87.712,1.78854595]
[1772465489606,1.81638656,87.755,87.71,8.29395826]
[1772465489904,1.81638656,87.749,87.71,8.29395826]
[1772465490104,1.81638656,87.749,87.701,1.78854595]
[1772465490407,10.11034482,87.74,87.701,1.78854595]
[1772465490699,1.81638656,87.729,87.681,28.51237234]
[1772465491406,1.81638656,87.719,87.682,11.40484934]
[1772465492198,1.81638656,87.709,87.676,11.40557068]
[1772465492401,8.29395826,87.72,87.676,11.40557068]
[1772465492592,10.11034482,87.72,87.676,11.40557068]
[1772465493096,1.81638656,87.72,87.68,8.29395826]
[1772465493298,11.39873884,87.73,87.691,1.78854595]
[1772465493502,56.97430438,87.759,87.721,1.78854595]
[1772465493503,11.39484269,87.759,87.721,1.78854595]
[1772465493687,13.21122925,87.759,87.721,1.78854595]
[1772465493886,8.29395826,87.75,87.71,8.29395826]
[1772465494190,39.88194942,87.759,87.721,1.78854595]
[1772465494191,11.39484269,87.759,87.721,1.78854595]
[1772465494588,11.39484269,87.759,87.72,8.29395826]
[1772465494589,3.69383402,87.76,87.723,1.78854595]
[1772465494788,3.69383402,87.76,87.731,1.78854595]
[1772465495104,3.69383402,87.76,87.696,1.14030286]
[1772465495105,8.29395826,87.75,87.704,1.78854595]
[1772465495500,13.21148894,87.757,87.711,39.90377489]
[1772465495804,13.21148894,87.757,87.72,8.29395826]
[1772465496003,3.69383402,87.76,87.731,2.07286909]
[1772465496197,1.8401273,87.76,87.74,8.29395826]
[1772465496503,1.31185518,87.76,87.74,8.29395826]
[1772465496701,1.85349117,87.779,87.74,8.29395826]
[1772465497401,1.85349117,87.779,87.733,0.28432314]
[1772465497606,1.85349117,87.769,87.72,8.29395826]
[1772465497909,1.85349117,87.759,87.72,8.29395826]
[1772465498287,1.85349117,87.775,87.731,0.14216157]
[1772465498482,1.85349117,87.775,87.741,0.28432314]
[1772465498709,1.85349117,87.775,87.73,8.31341137]
[1772465498893,1.85349117,87.769,87.73,8.31341137]
[1772465499087,1.85349117,87.769,87.72,8.31341137]
[1772465499307,1.85349117,87.759,87.713,39.90286501]
[1772465499509,1.85349117,87.757,87.72,8.31341137]
[1772465499691,1.85349117,87.757,87.714,0.28432314]
[1772465500007,1.85349117,87.749,87.706,11.4016194]
[1772465500212,1.85349117,87.749,87.71,8.31341137]
[1772465500790,1.85349117,87.749,87.7,19.71585808]
[1772465500997,1.85349117,87.749,87.701,0.28432314]
[1772465501395,1.85349117,87.749,87.71,8.31341137]
[1772465501709,1.85349117,87.739,87.691,11.40367882]
[1772465501884,1.85349117,87.719,87.684,0.14216157]
[1772465502084,1.85349117,87.719,87.66,1.14077116]
[1772465502085,1.85349117,87.709,87.663,11.40732121]
[1772465502297,1.85349117,87.709,87.67,8.31341137]
[1772465502504,1.85349117,87.709,87.671,0.28432314]
[1772465503005,1.85349117,87.709,87.68,8.31341137]
[1772465503918,11.4014685,87.708,87.68,8.31341137]
[1772465504220,1.85349117,87.723,87.68,8.31341137]
[1772465504722,1.85349117,87.709,87.67,8.31341137]
[1772465505088,1.85349117,87.709,87.665,39.92471339]
[1772465505300,1.85349117,87.709,87.665,11.40706097]
[1772465505520,1.85349117,87.707,87.661,11.40758147]
[1772465505694,1.85349117,87.689,87.65,0.2]
[1772465505898,1.85349117,87.669,87.634,3.69383402]
[1772465506094,39.90513977,87.708,87.624,11.41239842]
[1772465506095,1.85349117,87.659,87.624,11.41239842]
[1772465506295,1.85349117,87.649,87.6,8.31341137]
[1772465506499,1.85349117,87.649,87.603,0.28432314]
[1772465506699,1.85349117,87.639,87.603,0.28432314]
[1772465507018,1.85349117,87.639,87.6,8.31341137]
[1772465507019,8.31341137,87.63,87.591,11.41669806]
[1772465507315,1.85349117,87.629,87.591,11.41669806]
[1772465507524,1.85349117,87.643,87.61,8.31341137]
[1772465507718,1.85349117,87.659,87.62,8.31341137]
[1772465508110,1.85349117,87.629,87.58,8.31341137]
[1772465508308,8.31341137,87.59,87.551,11.42184647]
[1772465508500,1.85349117,87.579,87.562,11.4204792]
[1772465508699,0.28432314,87.636,87.562,11.4204792]
[1772465509196,8.31341137,87.63,87.59,8.31341137]
[1772465509408,8.31341137,87.63,87.562,39.9716772]
[1772465509409,8.31341137,87.61,87.564,1.14202183]
[1772465509618,11.41565542,87.599,87.562,11.4204792]
[1772465509998,8.31341137,87.61,87.57,8.31341137]
[1772465510198,8.31341137,87.61,87.563,1.6793327]
[1772465510398,8.31341137,87.61,87.564,0.28432314]
[1772465510915,10.16122242,87.61,87.57,8.31341137]
[1772465511122,1.84781105,87.609,87.58,8.31341137]
[1772465511421,1.84781105,87.609,87.562,11.4204792]
[1772465511422,8.31341137,87.6,87.562,11.4204792]
[1772465511820,1.84781105,87.607,87.563,0.28432314]
[1772465512021,1.84781105,87.619,87.58,8.31341137]
[1772465512220,8.31341137,87.61,87.571,0.28432314]
[1772465512414,1.84781105,87.619,87.58,8.31341137]
[1772465512719,1.84781105,87.619,87.571,0.28432314]
[1772465512918,1.84781105,87.599,87.562,11.4204792]
[1772465513229,8.31341137,87.59,87.557,11.42110127]
[1772465513518,1.84781105,87.599,87.562,11.4204792]
[1772465513732,1.84781105,87.611,87.571,0.28432314]
[1772465513898,3.69383402,87.639,87.6,8.31341137]
[1772465514102,3.69383402,87.639,87.594,1.6793327]
[1772465514320,3.69383402,87.639,87.61,8.31341137]
[1772465514497,3.69383402,87.639,87.601,1.96365584]
[1772465514498,1.84781105,87.655,87.62,8.31341137]
[1772465514697,1.84781105,87.655,87.575,4.82477569]
[1772465514698,1.84781105,87.668,87.626,1.6793327]
[1772465514924,1.84781105,87.667,87.63,8.31341137]
[1772465515101,1.84781105,87.667,87.564,85.65163764]
[1772465515102,1.84781105,87.666,87.614,2.8207028]
[1772465515419,1.84781105,87.666,87.63,8.31341137]
[1772465515629,1.84781105,87.666,87.64,8.31341137]
[1772465515808,11.40706097,87.665,87.632,11.41135658]
[1772465516001,8.31341137,87.66,87.621,11.41278917]
[1772465516215,1.84781105,87.659,87.621,11.41278917]
[1772465517229,3.69383402,87.69,87.621,11.41278917]
[1772465517230,1.84781105,87.688,87.64,8.31341137]
[1772465517415,10.16122242,87.68,87.64,8.31341137]
[1772465517624,1.84781105,87.679,87.64,8.31341137]
[1772465517826,1.84781105,87.677,87.641,11.41018473]
[1772465518334,45.57992902,87.758,87.641,11.41018473]
[1772465518335,1.84781105,87.709,87.651,1.6793327]
[1772465518629,1.84781105,87.699,87.661,0.28432314]
[1772465518928,1.84781105,87.699,87.652,0.28432314]
[1772465519225,1.84781105,87.699,87.66,8.31341137]
[1772465519429,1.84781105,87.699,87.641,39.93564655]
[1772465519430,1.84781105,87.725,87.674,1.6793327]
[1772465519618,1.84781105,87.725,87.681,0.28432314]
[1772465519926,1.84781105,87.723,87.683,0.28432314]
[1772465520414,11.39882186,87.729,87.691,1.6793327]
[1772465520612,11.39882186,87.729,87.682,39.91697269]
[1772465520613,1.84781105,87.728,87.682,11.40484934]
[1772465520812,8.31341137,87.69,87.644,0.28432314]
[1772465521022,1.84781105,87.689,87.642,11.41005454]
[1772465521637,1.84781105,87.717,87.66,8.31341137]
[1772465521804,10.16122242,87.7,87.661,11.40758147]
[1772465522010,1.84781105,87.699,87.661,11.40758147]
[1772465522351,1.84781105,87.761,87.69,8.31341137]
[1772465522629,1.84781105,87.739,87.69,9.99274407]
[1772465523008,1.84781105,87.739,87.7,8.31341137]
[1772465523324,39.88058613,87.762,87.67,8.31341137]
[1772465523325,1.84781105,87.719,87.67,8.31341137]
[1772465523526,1.84781105,87.699,87.661,11.40758147]
[1772465523836,1.84781105,87.687,87.641,3.69383402]
[1772465524035,1.84781105,87.687,87.65,8.31341137]
[1772465524516,8.31341137,87.68,87.64,11.41031492]
[1772465524831,10.16122242,87.68,87.64,19.72372629]
[1772465525009,8.31341137,87.69,87.65,8.31341137]
[1772465525527,1.84781105,87.688,87.641,1.82149427]
[1772465525709,1.84781105,87.686,87.642,11.41005454]
[1772465525914,1.84781105,87.679,87.63,19.72502839]
[1772465526909,8.80293285,87.768,87.651,1.6793327]
[1772465527104,1.84781105,87.699,87.651,1.6793327]
[1772465527310,1.84781105,87.699,87.652,0.28432314]
[1772465527727,1.84781105,87.697,87.654,0.28432314]
[1772465527922,1.84781105,87.697,87.653,11.40862263]
[1772465528530,1.84781105,87.679,87.642,11.41005454]
[1772465528933,1.84781105,87.669,87.641,3.69383402]
[1772465529136,10.16122242,87.67,87.642,11.41005454]
[1772465529307,1.84781105,87.684,87.642,39.93519089]
[1772465529639,8.31341137,87.68,87.642,11.41005454]
[1772465529819,1.84781105,87.678,87.641,3.69383402]
[1772465530013,1.84781105,87.678,87.641,15.10396893]
[1772465530208,1.84781105,87.678,87.641,3.69383402]
[1772465531116,1.84781105,87.678,87.642,11.41005454]
[1772465531319,1.84781105,87.678,87.641,3.69383402]
[1772465531519,1.84781105,87.669,87.641,3.69383402]
[1772465531711,1.84781105,87.667,87.641,3.69383402]
[1772465531911,39.92334717,87.668,87.598,1.6793327]
[1772465531912,1.84781105,87.649,87.598,1.6793327]
[1772465532129,1.84781105,87.649,87.6,8.31341137]
[1772465532335,1.84781105,87.649,87.61,8.31341137]
[1772465532831,1.84781105,87.649,87.6,8.31341137]
[1772465533227,1.84781105,87.649,87.61,8.31341137]
[1772465533731,1.84781105,87.649,87.6,8.31341137]
[1772465534135,1.84781105,87.649,87.574,57.09412908]
[1772465534136,8.31341137,87.67,87.63,8.31341137]
[1772465534430,1.82738889,87.668,87.63,8.31341137]
[1772465534643,1.82738889,87.668,87.621,1.77440604]
[1772465534831,1.82738889,87.659,87.606,1.77440604]
[1772465535030,1.82738889,87.639,87.591,13.19102731]
[1772465535230,1.82738889,87.639,87.59,8.31341137]
[1772465535231,1.82738889,87.639,87.59,19.73014552]
[1772465535628,1.82738889,87.639,87.59,48.27221653]
[1772465535834,8.31341137,87.64,87.579,1.77440604]
[1772465535835,1.82738889,87.629,87.58,8.31341137]
[1772465536038,1.82738889,87.629,87.571,3.69383402]
[1772465536039,8.31341137,87.62,87.571,3.69383402]
[1772465536222,1.82738889,87.609,87.572,11.41917507]
[1772465536640,1.82738889,87.633,87.59,8.31341137]
[1772465537139,1.82738889,87.609,87.561,0.2611943]
[1772465537346,1.82738889,87.599,87.561,0.2611943]
[1772465538236,8.31341137,87.6,87.561,0.2611943]
[1772465538237,1.71166029,87.597,87.561,0.2611943]
[1772465538448,1.71166029,87.589,87.561,0.2611943]
[1772465538626,1.99598343,87.599,87.528,1.66734198]
[1772465538970,1.99598343,87.599,87.521,41.08]
[1772465538971,1.71166029,87.569,87.53,8.31341137]
[1772465539149,11.41470774,87.607,87.491,1.66734198]
[1772465539346,8.31341137,87.52,87.492,1.66734198]
[1772465539544,1.71166029,87.539,87.5,8.31341137]
[1772465540044,39.99177311,87.518,87.49,0.1]
[1772465540219,1.71166029,87.517,87.49,0.1]
[1772465541922,1.71166029,87.509,87.47,8.31341137]
[1772465542134,1.71166029,87.537,87.491,1.66734198]
[1772465542848,1.71166029,87.519,87.473,12.38168248]
[1772465543044,1.71166029,87.509,87.473,12.38168248]
[1772465543241,1.71166029,87.509,87.473,0.94968733]
[1772465543842,1.71166029,87.509,87.473,12.38174801]
[1772465544047,1.71166029,87.509,87.461,5.361176]
[1772465544048,1.71166029,87.489,87.461,3.69383402]
[1772465544230,1.71166029,87.489,87.449,1.66734198]
[1772465544231,1.71166029,87.487,87.436,11.43693673]
[1772465544541,45.68965121,87.548,87.436,11.43693673]
[1772465544542,8.31341137,87.51,87.47,8.31341137]
[1772465544743,8.31341137,87.51,87.436,40.02927855]
[1772465544744,1.71166029,87.499,87.451,1.66734198]
[1772465544947,1.71166029,87.489,87.44,8.31341137]
[1772465545132,1.71166029,87.489,87.43,0.1]
[1772465545133,1.71166029,87.459,87.431,11.43759078]
[1772465545329,1.71166029,87.469,87.43,0.1]
[1772465545737,0.28432314,87.488,87.41,10.08075335]
[1772465545738,8.31341137,87.45,87.41,10.08075335]
[1772465545941,8.31341137,87.44,87.41,0.1]
[1772465546328,11.4353673,87.448,87.41,0.1]
[1772465546525,10.02507166,87.44,87.41,0.1]
[1772465546734,1.71166029,87.469,87.43,8.31341137]
[1772465547026,1.71166029,87.481,87.45,8.31341137]
[1772465547233,11.42896327,87.497,87.45,8.31341137]
[1772465547429,11.42896327,87.497,87.441,1.95166512]
[1772465547430,1.71166029,87.496,87.46,8.31341137]
[1772465547636,1.71166029,87.496,87.451,1.66734198]
[1772465547855,1.71166029,87.479,87.44,8.31341137]
[1772465548045,3.69383402,87.498,87.449,1.66734198]
[1772465548234,3.69383402,87.498,87.461,11.43366757]
[1772465548235,15.12269606,87.498,87.461,11.43366757]
[1772465548432,3.69383402,87.498,87.461,11.43366757]
[1772465548649,11.42896327,87.497,87.461,11.43366757]
[1772465549251,3.69383402,87.498,87.461,11.43366757]
[1772465549432,1.71166029,87.496,87.461,11.43366757]
[1772465549629,1.71166029,87.489,87.448,11.4353673]
[1772465549863,1.71166029,87.489,87.442,11.43609788]
[1772465550030,11.42896327,87.497,87.434,11.43719834]
[1772465550031,1.71166029,87.479,87.434,11.43719834]
[1772465550232,1.71166029,87.477,87.434,11.43719834]
[1772465550442,1.71166029,87.469,87.434,11.43719834]
[1772465550651,10.02507166,87.46,87.434,11.43719834]
[1772465550966,10.02507166,87.46,87.421,11.43889912]
[1772465551145,1.71166029,87.459,87.421,11.43889912]
[1772465552035,1.71166029,87.459,87.421,40.03614692]
[1772465552239,11.43405977,87.458,87.421,11.43889912]
[1772465552451,1.71166029,87.429,87.392,0.2611943]
[1772465552759,8.31341137,87.42,87.392,0.2611943]
[1772465553052,10.02507166,87.43,87.392,11.70379821]
[1772465553259,97.18950809,87.458,87.392,1e-08]
[1772465553260,1.71166029,87.409,87.392,1e-08]
[1772465553757,1.71166029,87.409,87.38,0.2]
[1772465554002,1.71166029,87.399,87.36,0.1]
[1772465554131,1.71166029,87.369,87.321,1.66734198]
[1772465554339,1.71166029,87.357,87.312,11.4531794]
[1772465554530,1.71166029,87.371,87.34,8.31341137]
[1772465554743,1.71166029,87.359,87.312,1.66734198]
[1772465554954,1.71166029,87.373,87.331,1.66734198]
[1772465555149,1.71166029,87.369,87.319,1.66734198]
[1772465555449,1.71166029,87.369,87.311,40.08649426]
[1772465555450,1.71166029,87.369,87.33,8.31341137]
[1772465555636,8.31341137,87.38,87.34,8.31341137]
[1772465555844,1.71166029,87.379,87.32,8.31341137]
[1772465556057,8.31341137,87.38,87.34,8.31341137]
[1772465556233,11.44413545,87.381,87.341,11.44937658]
[1772465556747,8.31341137,87.39,87.35,8.31341137]
[1772465557044,19.75511871,87.4,87.36,8.31341137]
[1772465557237,8.31341137,87.4,87.36,8.31341137]
[1772465557443,1.71166029,87.407,87.37,8.31341137]
[1772465557631,8.31341137,87.4,87.361,1.95166512]
[1772465557840,1.71166029,87.389,87.342,1.95166512]
[1772465558063,1.71166029,87.399,87.351,1.66734198]
[1772465558251,40.05539087,87.379,87.338,1.66734198]
[1772465558575,1.71166029,87.369,87.328,1.66734198]
[1772465559149,1.71166029,87.369,87.33,8.39425091]
[1772465559452,11.44439739,87.379,87.33,10.06159289]
[1772465559656,1.71166029,87.378,87.331,1.66734198]
[1772465559854,8.39425091,87.37,87.331,1.66734198]
[1772465560158,1.71166029,87.359,87.307,11.45370818]
[1772465560358,1.71166029,87.348,87.309,11.45357294]
[1772465560662,1.71166029,87.348,87.295,3.69383402]
[1772465560663,1.71166029,87.339,87.3,8.39425091]
[1772465560843,1.71166029,87.348,87.31,8.39425091]
[1772465561249,1.71166029,87.339,87.3,8.39425091]
[1772465561564,1.71166029,87.339,87.295,3.69383402]
[1772465561565,1.71166029,87.319,87.295,3.69383402]
[1772465561864,1.71166029,87.322,87.271,1.66734198]
[1772465562163,1.71166029,87.322,87.29,8.39425091]
[1772465562358,1.71166029,87.349,87.31,8.39425091]
[1772465562556,13.15998826,87.349,87.31,8.39425091]
[1772465563062,1.71166029,87.348,87.32,8.39425091]
[1772465563243,1.71166029,87.348,87.31,1.66734198]
[1772465563244,1.71166029,87.369,87.33,8.39425091]
[1772465563445,8.39425091,87.4,87.36,8.39425091]
[1772465563644,11.44084664,87.407,87.361,1.95166512]
[1772465563856,8.39425091,87.4,87.361,1.66734198]
[1772465564061,11.44084664,87.407,87.361,1.66734198]
[1772465564449,11.43902997,87.42,87.38,8.39425091]
[1772465564664,11.43902997,87.42,87.39,8.39425091]
[1772465564870,0.14216157,87.399,87.351,1.66734198]
[1772465565071,0.14216157,87.399,87.33,8.39425091]
[1772465565072,8.39425091,87.37,87.33,8.39425091]
[1772465565276,40.03660489,87.42,87.31,8.39425091]
[1772465565277,8.39425091,87.36,87.31,8.39425091]
[1772465565492,8.39425091,87.35,87.31,8.39425091]
[1772465565768,1.71166029,87.353,87.307,11.45383531]
[1772465565769,1.71166029,87.367,87.33,8.39425091]
[1772465565952,8.39425091,87.37,87.32,10.06159289]
[1772465566155,8.39425091,87.35,87.32,1.66734198]
[1772465566354,8.39425091,87.35,87.31,8.39425091]
[1772465566355,11.44832797,87.349,87.31,8.39425091]
[1772465566574,11.44832797,87.349,87.311,11.45331057]
[1772465566954,0.14216157,87.338,87.28,1.66734198]
[1772465567285,1.96590937,87.348,87.29,8.39425091]
[1772465567488,1.68158623,87.348,87.3,8.39425091]
[1772465567691,40.06914789,87.349,87.31,8.39425091]
[1772465567692,11.44832797,87.349,87.31,8.39425091]
[1772465567892,8.39425091,87.34,87.3,8.39425091]
[1772465568173,1.68158623,87.309,87.27,0.1]
[1772465568373,11.45488493,87.299,87.27,0.1]
[1772465568578,1.68158623,87.298,87.27,0.1]
[1772465568794,11.45488493,87.299,87.27,0.1]
[1772465568795,1.68158623,87.312,87.27,8.49425091]
[1772465569072,1.68158623,87.312,87.28,8.39425091]
[1772465569276,1.68158623,87.312,87.27,1.85042008]
[1772465569277,1.68158623,87.317,87.27,8.49425091]
[1772465569580,8.39425091,87.29,87.262,3.69383402]
[1772465569753,40.08337341,87.318,87.24,8.39425091]
[1772465569754,8.39425091,87.28,87.24,8.39425091]
[1772465569954,1.68158623,87.279,87.24,8.39425091]
[1772465570361,1.68158623,87.289,87.24,1.75042008]
[1772465570549,3.69383402,87.315,87.25,8.39425091]
[1772465570550,11.45632847,87.288,87.25,8.39425091]
[1772465570780,11.45547892,87.295,87.251,1.75042008]
[1772465571160,11.45547892,87.295,87.26,8.39425091]
[1772465571378,1.68158623,87.294,87.251,1.75042008]
[1772465571767,1.68158623,87.294,87.25,8.39425091]
[1772465571768,11.45314972,87.313,87.28,8.39425091]